bitfinex-derivatives/quotes_SOLF0:USTF0_20241230
["timestamp","ask_amount","ask_price","bid_price","bid_amount"]
[1735566249095,2.6406,189.7,189.62,3.58]
[1735566250197,2.6405,189.71,189.63,19.24717204]
[1735566250699,2.6409,189.68,189.63,19.24717204]
[1735566250999,22.82717204,189.77,189.62,3.58]
[1735566251195,2.6409,189.68,189.63,2.6414]
[1735566251406,2.6409,189.68,189.62,3.58]
[1735566251896,2.6409,189.68,189.64,2.6413]
[1735566252201,2.6406,189.7,189.63,19.24717204]
[1735566252600,2.6406,189.7,189.65,2.6412]
[1735566253000,3.58,189.77,189.63,19.24717204]
[1735566253301,1.9686,189.79,189.66,19.24717204]
[1735566253501,2.6401,189.74,189.67,2.0272]
[1735566253705,1.9686,189.79,189.7,2.6405]
[1735566254001,2.6401,189.74,189.7,2.6405]
[1735566255091,1.9686,189.79,189.72,2.6403]
[1735566255092,2.6398,189.76,189.72,2.6403]
[1735566255291,3.58,189.81,189.68,7.5601]
[1735566255903,3.58,189.81,189.71,2.6404]
[1735566256199,21.32847204,189.83,189.68,7.5601]
[1735566256200,2.0813,189.83,189.69,19.24717204]
[1735566256498,3.52,189.86,189.72,19.24717204]
[1735566256703,2.6392,189.8,189.76,2.6397]
[1735566256999,2.6392,189.8,189.73,3.52]
[1735566257000,3.52,189.86,189.73,3.52]
[1735566257597,2.6398,189.76,189.73,3.52]
[1735566258004,22.76717204,189.85,189.73,3.52]
[1735566258301,22.76717204,189.85,189.75,2.6398]
[1735566258507,3.52,189.85,189.73,3.52]
[1735566259203,2.639,189.82,189.73,6.16]
[1735566259405,3.52,189.85,189.73,3.52]
[1735566259706,2.6394,189.79,189.74,2.64]
[1735566259908,3.52,189.85,189.73,3.52]
[1735566260802,3.52,189.84,189.73,3.52]
[1735566261201,2.6395,189.78,189.73,6.1601]
[1735566262707,3.52,189.84,189.68,3.9801]
[1735566262908,3.52,189.84,189.68,7.5001]
[1735566263102,2.6396,189.78,189.69,2.6406]
[1735566263304,19.24717204,189.81,189.69,2.6406]
[1735566263707,2.64,189.75,189.68,7.5001]
[1735566263908,19.24717204,189.81,189.68,7.5001]
[1735566264210,2.6404,189.71,189.68,3.9801]
[1735566264506,3.52,189.77,189.68,3.9801]
[1735566264703,2.6404,189.72,189.68,3.9801]
[1735566264898,3.52,189.77,189.68,3.9801]
[1735566265411,2.6405,189.71,189.68,3.9801]
[1735566265607,3.52,189.77,189.68,1.9584]
[1735566265907,22.76717204,189.77,189.62,3.52]
[1735566266304,22.76717204,189.77,189.64,2.6414]
[1735566267405,2.6407,189.7,189.64,2.6414]
[1735566267613,22.76717204,189.77,189.64,2.6414]
[1735566268110,22.76717204,189.77,189.64,2.6413]
[1735566269008,2.6407,189.69,189.64,2.6413]
[1735566270708,15.55334575,189.72,189.59,18.07334575]
[1735566271008,12.03334575,189.69,189.59,4.1168]
[1735566271803,12.03334575,189.66,189.53,15.55334575]
[1735566272004,3.52,189.65,189.53,17.56414575]
[1735566272509,3.52,189.65,189.53,14.04414575]
[1735566273313,12.03334575,189.72,189.53,14.04414575]
[1735566273314,3.52,189.79,189.62,12.03334575]
[1735566273507,1.9876,189.77,189.65,12.03334575]
[1735566273704,2.6406,189.7,189.65,14.67454575]
[1735566274208,154.33650906,189.75,189.65,14.67454575]
[1735566274409,2.6405,189.71,189.65,14.67454575]
[1735566274618,3.52,189.74,189.65,14.67454575]
[1735566275416,2.6406,189.7,189.65,14.67454575]
[1735566275619,3.52,189.74,189.63,5.5962]
[1735566276006,3.52,189.74,189.63,2.0762]
[1735566276613,2.6407,189.7,189.64,2.6413]
[1735566277114,2.6405,189.71,189.63,2.0762]
[1735566277313,102.76329686,189.75,189.64,19.25049961]
[1735566277514,99.24329686,189.75,189.64,22.77049961]
[1735566277816,2.6402,189.73,189.64,22.77049961]
[1735566278015,1.9241,189.79,189.64,22.77049961]
[1735566278215,3.52,189.81,189.67,19.25049961]
[1735566278410,3.52,189.81,189.68,2.0768]
[1735566278610,2.6394,189.79,189.73,2.6401]
[1735566278812,3.52,189.81,189.69,3.52]
[1735566280422,3.52,189.81,189.7,2.6405]
[1735566280423,2.6398,189.76,189.7,2.6405]
[1735566280821,22.77049961,189.81,189.69,3.52]
[1735566281624,2.6401,189.73,189.69,3.52]
[1735566282219,22.77049961,189.81,189.69,3.52]
[1735566282423,22.77049961,189.81,189.7,2.6405]
[1735566282823,2.6395,189.78,189.7,2.6405]
[1735566283017,22.77049961,189.81,189.7,2.6405]
[1735566284024,2.6399,189.76,189.7,2.6405]
[1735566285019,2.6399,189.75,189.7,2.6405]
[1735566285225,22.77049961,189.81,189.69,3.52]
[1735566285622,2.6404,189.72,189.69,3.52]
[1735566285823,22.77049961,189.81,189.66,2.6411]
[1735566286315,2.6396,189.77,189.66,2.6411]
[1735566286521,19.25049961,189.78,189.65,6.0812]
[1735566286823,5.5313,189.77,189.65,6.0812]
[1735566287030,2.6405,189.71,189.65,6.0812]
[1735566287419,2.6406,189.7,189.65,6.0812]
[1735566287618,5.5313,189.77,189.65,6.0812]
[1735566287920,2.6393,189.79,189.69,19.25049961]
[1735566288119,1.9095,189.83,189.7,3.44]
[1735566288332,1.9095,189.83,189.74,2.6399]
[1735566288518,1.9095,189.83,189.71,23.46299961]
[1735566288718,1.9095,189.83,189.71,4.2125]
[1735566288928,1.9095,189.83,189.71,6.8528]
[1735566289130,2.6392,189.8,189.71,4.2125]
[1735566289432,1.9095,189.83,189.71,23.46299961]
[1735566289726,2.6392,189.8,189.72,1.9199]
[1735566291223,2.6392,189.8,189.74,2.64]
[1735566291726,2.6393,189.79,189.74,2.64]
[1735566292425,2.6392,189.8,189.75,2.6398]
[1735566293232,3.44,189.85,189.72,1.9199]
[1735566293627,19.25049961,189.83,189.69,3.44]
[1735566293823,2.64,189.75,189.69,2.6406]
[1735566294326,2.64,189.75,189.7,2.6405]
[1735566295429,2.64,189.74,189.68,3.44]
[1735566295630,22.69049961,189.8,189.66,3.44]
[1735566295830,22.69049961,189.8,189.65,3.44]
[1735566296030,2.6398,189.76,189.67,2.6409]
[1735566296329,12.02935797,189.78,189.65,15.46935797]
[1735566296530,1.925,189.77,189.65,15.46935797]
[1735566297627,1.925,189.77,189.68,12.02935797]
[1735566298038,2.6393,189.79,189.73,2.64]
[1735566298332,2.0972,189.85,189.74,12.02935797]
[1735566298731,2.0972,189.85,189.75,2.0191]
[1735566300032,12.02935797,189.84,189.75,2.0191]
[1735566300225,3.44,189.83,189.71,15.46935797]
[1735566300426,12.02935797,189.81,189.71,3.44]
[1735566301134,12.02935797,189.81,189.67,3.44]
[1735566301831,2.6396,189.77,189.7,2.6405]
[1735566302032,12.02935797,189.81,189.67,3.44]
[1735566302233,19.24235514,189.82,189.67,3.44]
[1735566302735,19.24235514,189.82,189.68,2.0725]
[1735566302938,2.6394,189.79,189.72,2.6402]
[1735566303139,19.24235514,189.82,189.68,2.0725]
[1735566303334,3.44,189.83,189.68,21.31485514]
[1735566303937,2.6395,189.78,189.68,21.31485514]
[1735566304544,2.6392,189.8,189.72,2.6401]
[1735566304840,3.44,189.83,189.72,2.6401]
[1735566305038,2.64,189.75,189.7,2.6406]
[1735566305238,19.24235514,189.82,189.68,2.0725]
[1735566305439,19.24235514,189.79,189.63,3.44]
[1735566305737,6.8042,189.78,189.62,19.24235514]
[1735566305935,19.24235514,189.76,189.61,2.06]
[1735566306135,2.6403,189.72,189.62,19.24235514]
[1735566306535,2.6403,189.72,189.66,2.641]
[1735566306737,2.6402,189.73,189.64,3.44]
[1735566307141,2.0106,189.77,189.64,3.44]
[1735566307444,2.0106,189.77,189.65,19.24235514]
[1735566308244,2.64,189.74,189.68,2.6407]
[1735566308435,2.0106,189.77,189.65,19.24235514]
[1735566308840,2.6403,189.72,189.68,2.6407]
[1735566309647,2.0106,189.77,189.64,3.44]
[1735566309648,2.6407,189.7,189.66,2.6411]
[1735566310250,2.0106,189.77,189.64,3.44]
[1735566310440,2.0106,189.77,189.65,19.24235514]
[1735566311040,2.0907,189.82,189.68,19.24235514]
[1735566311245,2.0907,189.82,189.71,19.24235514]
[1735566311451,2.6393,189.8,189.72,1.9943]
[1735566311648,2.6393,189.8,189.72,4.014]
[1735566312150,2.6393,189.79,189.72,4.014]
[1735566312342,58.5332122,189.84,189.72,4.014]
[1735566312538,58.5332122,189.84,189.76,2.6396]
[1735566312539,3.44,189.84,189.76,2.6396]
[1735566312949,21.33305514,189.87,189.78,2.6393]
[1735566312950,2.0907,189.87,189.78,2.6393]
[1735566313748,5.5307,189.87,189.78,2.6393]
[1735566314454,2.6388,189.83,189.78,2.6393]
[1735566317062,24.77305514,189.87,189.72,1.9943]
[1735566317349,19.24235514,189.81,189.66,3.56]
[1735566317549,2.6402,189.73,189.67,2.6409]
[1735566317753,7.1049,189.8,189.67,2.6409]
[1735566317950,19.24235514,189.78,189.65,1.9518]
[1735566318259,2.6406,189.7,189.65,4.593]
[1735566318854,3.56,189.75,189.65,1.9518]
[1735566320349,2.6407,189.7,189.65,1.9518]
[1735566320550,3.56,189.75,189.59,19.24235514]
[1735566320744,22.80235514,189.75,189.59,22.80235514]
[1735566321150,2.6405,189.71,189.63,2.6415]
[1735566321346,22.80235514,189.75,189.63,2.6415]
[1735566322049,19.24235514,189.78,189.65,2.6412]
[1735566322254,15.59030221,189.77,189.64,15.59030221]
[1735566323156,2.6402,189.73,189.68,2.6407]
[1735566323662,15.59030221,189.77,189.64,15.59030221]
[1735566324063,12.03030221,189.74,189.64,3.56]
[1735566324253,2.6404,189.71,189.65,2.6412]
[1735566325165,2.6404,189.71,189.64,15.59030221]
[1735566325367,2.6406,189.7,189.64,15.59030221]
[1735566326465,2.6406,189.7,189.65,2.6412]
[1735566328069,3.56,189.75,189.64,15.59030221]
[1735566328369,2.0445,189.79,189.67,12.03030221]
[1735566328569,2.6399,189.75,189.7,2.6404]
[1735566328870,2.0445,189.79,189.68,2.0854]
[1735566329261,2.0445,189.79,189.69,3.56]
[1735566329462,2.6397,189.76,189.72,2.6402]
[1735566329663,2.0445,189.79,189.72,2.6402]
[1735566330267,2.0445,189.79,189.69,2.6407]
[1735566330466,2.0445,189.79,189.68,4.0775]
[1735566330870,2.0445,189.79,189.71,2.6404]
[1735566331171,2.0445,189.79,189.69,12.03030221]
[1735566331473,3.56,189.81,189.72,12.03030221]
[1735566331771,69.22611441,189.87,189.71,3.56]
[1735566331972,69.22611441,189.87,189.75,12.03030221]
[1735566332166,57.1958122,189.87,189.76,3.56]
[1735566332571,57.1958122,189.87,189.77,4.0414]
[1735566332871,2.6385,189.85,189.8,2.6392]
[1735566333467,2.1026,189.87,189.77,4.0414]
[1735566333663,2.6384,189.86,189.8,2.6391]
[1735566334172,2.6381,189.88,189.79,12.03030221]
[1735566334374,2.6381,189.88,189.77,23.25951104]
[1735566334571,5.5024,189.96,189.8,19.21811104]
[1735566334771,5.5024,189.96,189.85,2.6384]
[1735566334967,3.56,189.95,189.85,2.6384]
[1735566335365,4.0352,189.96,189.81,5.5079]
[1735566335571,1.9125,189.96,189.83,19.21811104]
[1735566336077,55.0932122,189.98,189.86,19.21811104]
[1735566336369,2.6371,189.95,189.89,2.6378]
[1735566336571,1.9125,190.01,189.87,7.5722]
[1735566336776,1.9125,190.01,189.89,19.21811104]
[1735566336969,1.9125,190.01,189.9,2.1129]
[1735566338273,3.56,190.04,189.9,2.1129]
[1735566338274,3.56,190.04,189.92,2.6375]
[1735566338476,3.56,190.04,189.93,3.56]
[1735566338774,2.6363,190.01,189.93,3.56]
[1735566338974,24.90081104,190.05,189.93,3.56]
[1735566339169,0.76837354,190.04,189.89,3.56]
[1735566339476,19.21811104,189.99,189.87,4.0122]
[1735566339673,19.21811104,189.96,189.82,2.1129]
[1735566339976,2.638,189.89,189.82,2.1129]
[1735566340972,2.638,189.89,189.83,2.6387]
[1735566341673,2.6381,189.88,189.82,2.1129]
[1735566341870,2.6381,189.88,189.82,4.7518]
[1735566342472,2.6382,189.87,189.82,4.7518]
[1735566342678,22.77811104,189.93,189.79,3.56]
[1735566343072,22.77811104,189.93,189.77,3.56]
[1735566343377,19.21811104,189.9,189.77,3.56]
[1735566343571,2.6388,189.83,189.77,3.56]
[1735566343971,1.9223,189.89,189.77,3.56]
[1735566344173,1.9223,189.89,189.75,2.0157]
[1735566344477,1.9223,189.89,189.77,2.6395]
[1735566344777,1.9223,189.89,189.76,3.54]
[1735566344978,2.6387,189.84,189.76,3.54]
[1735566345177,1.9223,189.89,189.76,3.54]
[1735566346875,2.6386,189.85,189.8,2.6391]
[1735566347277,1.9223,189.89,189.77,19.21811104]
[1735566347571,2.6381,189.88,189.83,2.6386]
[1735566347778,1.9223,189.89,189.81,3.54]
[1735566347977,1.9223,189.89,189.84,2.6386]
[1735566348674,2.6385,189.85,189.81,3.54]
[1735566349278,1.9223,189.89,189.83,2.6387]
[1735566350077,1.9223,189.89,189.81,3.54]
[1735566350272,2.6386,189.85,189.81,3.54]
[1735566350680,1.9223,189.89,189.81,3.54]
[1735566351581,1.9223,189.89,189.78,2.6394]
[1735566352082,1.9223,189.89,189.76,3.54]
[1735566352083,2.6389,189.83,189.79,2.6393]
[1735566352282,1.9223,189.89,189.76,3.54]
[1735566352482,2.6383,189.86,189.76,3.54]
[1735566352682,1.9223,189.89,189.76,3.54]
[1735566353083,2.6382,189.88,189.76,3.54]
[1735566353677,3.54,189.93,189.76,3.54]
[1735566353879,2.6384,189.86,189.76,3.54]
[1735566354074,5.5619,189.94,189.76,3.54]
[1735566354384,2.6376,189.91,189.84,2.6385]
[1735566354584,5.5619,189.94,189.81,3.54]
[1735566354979,2.0219,189.94,189.83,19.21811104]
[1735566355186,99.1393394,189.96,189.84,4.1694]
[1735566355486,99.1393394,189.96,189.88,2.6379]
[1735566355679,2.6375,189.92,189.88,2.6379]
[1735566355881,99.1393394,189.96,189.86,6.1783]
[1735566356285,2.6378,189.91,189.86,3.54]
[1735566356483,99.1393394,189.96,189.88,2.638]
[1735566357587,2.6375,189.93,189.88,2.638]
[1735566358385,2.6375,189.93,189.86,3.54]
[1735566358690,2.6375,189.93,189.89,2.6379]
[1735566358890,2.6375,189.92,189.86,3.54]
[1735566359089,2.6375,189.92,189.88,2.6379]
[1735566359787,12.00479082,189.95,189.84,16.17419082]
[1735566360291,2.6379,189.9,189.86,2.6382]
[1735566360589,12.00479082,189.95,189.84,4.1694]
[1735566360789,12.00479082,189.95,189.85,2.6385]
[1735566361090,12.00479082,189.95,189.82,3.54]
[1735566361291,2.638,189.89,189.85,2.6384]
[1735566361487,2.638,189.89,189.82,3.54]
[1735566361692,3.54,189.93,189.82,3.54]
[1735566361890,3.54,189.93,189.81,12.00479082]
[1735566362189,12.00479082,189.92,189.81,12.00479082]
[1735566363486,3.54,189.91,189.81,12.00479082]
[1735566363686,2.6383,189.87,189.83,2.6387]
[1735566363885,3.54,189.91,189.81,12.00479082]
[1735566364088,3.54,189.91,189.78,15.54479082]
[1735566364288,2.6383,189.87,189.82,2.6388]
[1735566364590,3.54,189.91,189.82,2.6388]
[1735566364983,2.638,189.89,189.82,2.6388]
[1735566365182,12.00479082,189.89,189.78,15.54479082]
[1735566365387,2.0728,189.88,189.76,3.963]
[1735566365993,2.0728,189.88,189.78,2.6394]
[1735566366591,2.6389,189.83,189.78,2.6394]
[1735566367192,2.6384,189.86,189.81,2.6389]
[1735566367387,2.6384,189.86,189.76,3.963]
[1735566367388,2.0728,189.88,189.8,12.00479082]
[1735566367788,2.6384,189.86,189.8,12.00479082]
[1735566367990,2.0728,189.88,189.78,3.54]
[1735566368186,2.0728,189.88,189.69,2.0846]
[1735566368497,12.00479082,189.82,189.69,16.20489082]
[1735566368792,3.54,189.81,189.69,16.20489082]
[1735566369184,3.54,189.81,189.69,14.12029082]
[1735566369391,2.6397,189.77,189.69,14.12029082]
[1735566369687,2.0007,189.8,189.69,14.12029082]
[1735566370088,2.6398,189.76,189.69,14.12029082]
[1735566370291,2.0007,189.8,189.72,12.00479082]
[1735566370494,3.54,189.85,189.75,12.00479082]
[1735566370697,2.6385,189.86,189.8,2.6391]
[1735566370995,1.9675,189.87,189.75,12.00479082]
[1735566371198,1.9675,189.87,189.78,2.6394]
[1735566371391,1.9675,189.87,189.75,12.00479082]
[1735566371586,55.0932122,189.88,189.78,12.00479082]
[1735566371791,55.0932122,189.88,189.79,1.9627]
[1735566371990,5.6602,189.89,189.82,2.6388]
[1735566372197,12.00479082,189.88,189.79,1.9627]
[1735566372992,2.6383,189.87,189.82,2.6389]
[1735566373291,12.00479082,189.88,189.79,1.9627]
[1735566374198,2.6385,189.85,189.8,2.6391]
[1735566374798,2.6386,189.84,189.79,4.602]
[1735566375096,3.48,189.86,189.74,19.42059082]
[1735566375292,2.6387,189.84,189.77,2.6395]
[1735566375493,3.48,189.86,189.74,19.42059082]
[1735566376095,2.6389,189.83,189.78,2.6393]
[1735566376494,3.48,189.86,189.74,19.42059082]
[1735566376699,2.6386,189.85,189.8,2.6391]
[1735566377000,3.48,189.86,189.74,19.42059082]
[1735566377200,2.6387,189.84,189.74,19.42059082]
[1735566377398,3.48,189.86,189.77,12.00479082]
[1735566377601,2.6385,189.86,189.77,12.00479082]
[1735566378092,2.1202,189.89,189.82,2.6388]
[1735566378294,2.1202,189.89,189.77,12.00479082]
[1735566378900,2.6384,189.86,189.77,12.00479082]
[1735566379392,2.6384,189.86,189.79,2.6392]
[1735566379596,2.6386,189.85,189.77,12.00479082]
[1735566379896,2.6386,189.85,189.81,2.6389]
[1735566380696,2.1202,189.89,189.77,12.00479082]
[1735566380998,2.6387,189.84,189.8,2.6391]
[1735566381198,2.1202,189.89,189.8,3.48]
[1735566381399,12.00479082,189.91,189.8,3.48]
[1735566381595,17.45069082,189.94,189.8,15.48479082]
[1735566381795,2.6379,189.9,189.85,2.6384]
[1735566382000,5.4459,189.94,189.85,2.6384]
[1735566382200,12.00479082,189.93,189.85,2.6384]
[1735566382595,12.00479082,189.93,189.87,2.6381]
[1735566383097,67.09800302,189.99,189.86,12.00479082]
[1735566383299,67.09800302,189.99,189.87,3.8909]
[1735566383992,12.00479082,189.99,189.87,3.8909]
[1735566384198,2.6366,189.99,189.94,2.6371]
[1735566385404,1.8726,190.01,189.97,2.6368]
[1735566385698,12.00479082,190.05,189.92,12.00479082]
[1735566385904,12.00479082,190.05,189.95,12.00479082]
[1735566386199,67.09800302,190.08,189.96,7.3187]
[1735566386598,55.0932122,190.08,189.98,12.00479082]
[1735566386797,2.6354,190.07,190.01,2.6361]
[1735566387006,55.0932122,190.08,190.01,3.48]
[1735566387401,2.6353,190.09,190.03,2.636]
[1735566388104,2.6353,190.09,190.04,2.6357]
[1735566388304,2.635,190.11,190.01,15.48479082]
[1735566388504,12.00479082,190.14,190.01,15.48479082]
[1735566388698,12.00479082,190.14,190.04,2.6357]
[1735566389205,12.00479082,190.14,190.01,15.48479082]
[1735566389401,12.00479082,190.14,190.03,2.636]
[1735566389600,12.00479082,190.11,190.01,3.48]
[1735566389800,2.6357,190.06,190.01,3.48]
[1735566389997,12.00479082,190.08,189.97,3.48]
[1735566390201,2.0239,190.07,189.97,3.48]
[1735566390409,12.00479082,190.05,189.97,3.48]
[1735566390804,5.5039,190.07,189.97,3.48]
[1735566390999,12.00479082,190.08,189.97,15.48479082]
[1735566391204,15.48479082,190.11,189.97,15.48479082]
[1735566391403,12.00479082,190.1,189.97,3.48]
[1735566392005,2.6357,190.06,190.0,2.6363]
[1735566392206,12.00479082,190.1,189.98,12.00479082]
[1735566393001,2.6358,190.05,189.99,2.6365]
[1735566393409,12.00479082,190.1,189.98,12.00479082]
[1735566393710,12.00479082,190.1,190.02,2.6361]
[1735566393911,12.00479082,190.1,189.98,12.00479082]
[1735566394110,2.6355,190.07,190.01,2.6361]
[1735566394307,3.48,190.11,189.98,12.00479082]
[1735566394705,2.6352,190.09,190.03,2.6359]
[1735566395209,2.6359,190.04,189.99,2.6364]
[1735566395409,12.00479082,190.1,189.96,21.23999082]
[1735566396008,15.48479082,190.13,189.99,12.00479082]
[1735566396408,2.635,190.1,190.05,2.6357]
[1735566397107,2.6348,190.12,190.07,2.6354]
[1735566397609,2.6346,190.14,190.08,2.6353]
[1735566397810,16.69009082,190.19,190.08,2.6353]
[1735566398209,2.6345,190.15,190.09,2.6351]
[1735566399109,16.69009082,190.19,190.09,2.6351]
[1735566399303,16.69009082,190.19,190.06,3.83]
[1735566399508,12.00479082,190.16,190.06,3.83]
[1735566400216,15.48479082,190.19,190.06,3.83]
[1735566401112,2.6346,190.14,190.08,2.6352]
[1735566401916,15.48479082,190.19,190.06,3.83]
[1735566402306,3.81,190.2,190.08,12.00479082]
[1735566402512,3.81,190.2,190.11,2.6347]
[1735566403113,3.81,190.2,190.12,2.6347]
[1735566403418,3.81,190.2,190.09,3.48]
[1735566403808,2.6341,190.17,190.13,2.6346]
[1735566404008,3.81,190.2,190.09,3.48]
[1735566404210,55.0932122,190.38,190.14,12.00479082]
[1735566404516,158.32521781,190.29,190.17,12.00479082]
[1735566404718,154.90521781,190.29,190.18,1.7847]
[1735566405314,2.6331,190.24,190.18,4.4186]
[1735566405515,12.00479082,190.27,190.18,1.7847]
[1735566405713,12.00479082,190.27,190.15,3.42]
[1735566406217,3.42,190.26,190.15,3.42]
[1735566407118,2.6335,190.22,190.16,2.6341]
[1735566407816,15.42479082,190.27,190.16,2.6341]
[1735566408019,15.42479082,190.27,190.15,1.8279]
[1735566408423,2.6337,190.2,190.15,1.8279]
[1735566408617,15.42479082,190.27,190.15,1.8279]
[1735566408816,12.00479082,190.27,190.16,12.00479082]
[1735566409212,3.42,190.28,190.16,12.00479082]
[1735566409520,15.42479082,190.28,190.16,12.00479082]
[1735566409719,12.00479082,190.25,190.14,3.42]
[1735566410023,1.8377,190.24,190.11,12.00479082]
[1735566410222,3.42,190.23,190.11,12.00479082]
[1735566410621,3.42,190.23,190.11,14.63959082]
[1735566410816,3.42,190.23,190.11,12.00479082]
[1735566411026,1.8377,190.24,190.11,12.00479082]
[1735566411321,1.8377,190.24,190.14,12.00479082]
[1735566411525,1.8377,190.24,190.15,3.42]
[1735566412115,1.8377,190.24,190.11,12.00479082]
[1735566412327,2.6344,190.15,190.11,12.00479082]
[1735566412530,15.42479082,190.22,190.1,3.7236]
[1735566413024,2.6346,190.14,190.1,3.7236]
[1735566413224,15.42479082,190.22,190.1,3.7236]
[1735566413622,2.6343,190.16,190.1,3.7236]
[1735566414324,15.42479082,190.22,190.11,12.00479082]
[1735566414325,2.6338,190.19,190.11,12.00479082]
[1735566414624,15.42479082,190.22,190.13,2.6346]
[1735566414826,2.6345,190.14,190.11,12.00479082]
[1735566415024,15.42479082,190.22,190.11,12.00479082]
[1735566415524,15.42479082,190.22,190.1,3.7236]
[1735566416021,15.42479082,190.22,190.1,1.8279]
[1735566416524,15.42479082,190.22,190.11,2.6348]
[1735566417226,15.42479082,190.22,190.12,2.6347]
[1735566417819,12.00479082,190.22,190.12,2.6347]
[1735566418024,2.6342,190.16,190.12,2.6347]
[1735566418329,12.00479082,190.22,190.11,12.00479082]
[1735566418628,12.00479082,190.22,190.1,1.8279]
[1735566418828,12.00479082,190.22,190.11,12.00479082]
[1735566419321,12.00479082,190.22,190.11,14.63969082]
[1735566419527,2.6343,190.16,190.11,14.63969082]
[1735566419728,12.00479082,190.22,190.11,12.00479082]
[1735566419929,12.00479082,190.22,190.12,2.6346]
[1735566420129,2.6342,190.16,190.11,12.00479082]
[1735566420523,12.00479082,190.22,190.13,2.6345]
[1735566420726,5.1899,190.23,190.11,12.00479082]
[1735566420924,12.00479082,190.22,190.09,1.7847]
[1735566421130,12.00479082,190.19,190.09,1.7847]
[1735566421329,3.42,190.18,190.06,15.42479082]
[1735566422030,2.6348,190.12,190.08,2.6353]
[1735566422930,2.6346,190.13,190.08,2.6353]
[1735566423129,15.42479082,190.22,190.09,12.00479082]
[1735566423326,2.6343,190.16,190.09,12.00479082]
[1735566423726,15.42479082,190.22,190.09,12.00479082]
[1735566423928,2.6343,190.16,190.09,12.00479082]
[1735566424329,15.42479082,190.22,190.12,2.6347]
[1735566424635,2.6343,190.15,190.12,2.6347]
[1735566425636,2.6343,190.15,190.11,2.6348]
[1735566425935,15.42479082,190.22,190.1,1.7789]
[1735566426728,2.6343,190.15,190.11,2.6348]
[1735566426929,1.7699,190.23,190.12,12.00479082]
[1735566427140,1.7699,190.23,190.12,13.89469082]
[1735566427632,2.6337,190.2,190.12,13.89469082]
[1735566428034,2.6339,190.19,190.15,2.6343]
[1735566428434,170.33000863,190.29,190.16,3.42]
[1735566428734,1.9337,190.28,190.16,3.42]
[1735566428936,1.9337,190.28,190.18,12.00479082]
[1735566429335,2.6329,190.25,190.19,2.6336]
[1735566429533,1.9337,190.28,190.19,2.6336]
[1735566430035,2.6331,190.24,190.19,2.6336]
[1735566430437,1.9337,190.28,190.16,3.42]
[1735566431037,2.6335,190.22,190.17,2.634]
[1735566432440,2.6335,190.21,190.17,2.634]
[1735566433639,2.6333,190.23,190.16,3.42]
[1735566434235,1.9337,190.28,190.16,3.42]
[1735566434440,12.00479082,190.26,190.14,3.4]
[1735566434643,3.4,190.25,190.14,3.4]
[1735566434837,2.6342,190.17,190.14,3.4]
[1735566435144,12.00479082,190.23,190.09,7.16073935]
[1735566435544,2.6346,190.14,190.08,15.40479082]
[1735566435737,12.00479082,190.2,190.08,15.40479082]
[1735566435738,6.254,190.24,190.08,15.40479082]
[1735566436043,2.6337,190.18,190.08,15.40479082]
[1735566436644,6.254,190.24,190.08,15.40479082]
[1735566436841,6.254,190.24,190.13,2.6342]
[1735566437339,12.00479082,190.22,190.07,1.8464]
[1735566437643,12.00479082,190.19,190.06,13.89749082]
[1735566437847,5.313,190.18,190.06,13.89749082]
[1735566438041,2.6346,190.11,190.07,2.6351]
[1735566438444,2.6346,190.11,190.06,12.00479082]
[1735566438945,2.6346,190.11,190.06,14.63999082]
[1735566439148,2.6348,190.1,190.04,5.1669]
[1735566439538,2.6348,190.1,190.06,2.6353]
[1735566439842,12.00479082,190.16,190.04,5.1669]